bitfinex-derivatives/quotes_BTCF0:USTF0_20240905
["timestamp","ask_amount","ask_price","bid_price","bid_amount"]
[1725566683867,0.622407,56234.0,56233.0,0.28]
[1725566684363,0.711334,56234.0,56233.0,0.28]
[1725566684669,0.177854,56234.0,56233.0,0.28]
[1725566684867,0.177854,56234.0,56231.0,0.001]
[1725566684868,0.17786,56232.0,56231.0,0.001]
[1725566685067,0.26879,56232.0,56231.0,0.001]
[1725566685363,0.088944,56223.0,56222.0,0.00026679]
[1725566685562,0.177888,56223.0,56222.0,0.00026679]
[1725566685764,0.179888,56223.0,56222.0,0.00026679]
[1725566686069,1.313488,56223.0,56222.0,0.00026679]
[1725566686857,1.313488,56223.0,56222.0,0.00126679]
[1725566687055,1.32374937,56223.0,56222.0,0.00126679]
[1725566687271,0.72374937,56223.0,56222.0,0.00126679]
[1725566687566,1.50807975,56223.0,56222.0,0.00126679]
[1725566687764,1.36731592,56223.0,56222.0,0.00126679]
[1725566687959,1.32474937,56223.0,56222.0,0.00226679]
[1725566688160,1.50907935,56223.0,56222.0,0.00226679]
[1725566688968,1.51107935,56223.0,56222.0,0.00126679]
[1725566689864,0.91107935,56223.0,56222.0,0.00126679]
[1725566690165,0.13551015,56223.0,56222.0,0.00126679]
[1725566690466,0.13751015,56223.0,56222.0,0.00226679]
[1725566692467,0.13551015,56223.0,56222.0,0.00126679]
[1725566692662,0.13551015,56223.0,56222.0,0.09121279]
[1725566692663,0.13651015,56223.0,56222.0,0.09121279]
[1725566693170,0.13750733,56223.0,56222.0,0.09221279]
[1725566693869,0.093944,56223.0,56222.0,0.09221279]
[1725566694567,0.092944,56223.0,56222.0,0.09121279]
[1725566694766,0.13650617,56223.0,56222.0,0.09121279]
[1725566695662,0.092944,56223.0,56222.0,0.08921279]
[1725566695870,0.092944,56223.0,56222.0,0.09021279]
[1725566696369,0.091944,56223.0,56222.0,0.09021279]
[1725566696578,0.092944,56223.0,56222.0,0.09021279]
[1725566698066,0.003,56223.0,56222.0,0.09021279]
[1725566698363,0.003,56223.0,56222.0,0.20361279]
[1725566698364,0.004,56223.0,56222.0,0.20361279]
[1725566698770,0.003,56223.0,56222.0,0.20261279]
[1725566698958,0.092944,56223.0,56222.0,0.11366679]
[1725566699157,0.004,56223.0,56222.0,0.20261279]
[1725566700862,0.092944,56223.0,56222.0,0.00026679]
[1725566701063,0.541688,56223.0,56222.0,0.00026679]
[1725566701264,0.542688,56223.0,56222.0,0.00026679]
[1725566701460,0.453744,56223.0,56222.0,0.00026679]
[1725566702159,0.542688,56223.0,56222.0,0.00026679]
[1725566704371,0.64892707,56223.0,56222.0,0.00026679]
[1725566704773,0.542688,56223.0,56222.0,0.00026679]
[1725566705165,0.64892707,56223.0,56222.0,0.00026679]
[1725566705671,0.73787107,56223.0,56222.0,0.00026679]
[1725566705982,0.631632,56223.0,56222.0,0.00026679]
[1725566708465,1.765232,56223.0,56222.0,0.00026679]
[1725566708669,1.165232,56223.0,56222.0,0.00026679]
[1725566708972,1.765232,56223.0,56222.0,0.00026679]
[1725566709169,1.165232,56223.0,56222.0,0.00026679]
[1725566710570,2.045232,56223.0,56222.0,0.00026679]
[1725566710876,0.631632,56223.0,56222.0,0.00026679]
[1725566711867,0.453744,56223.0,56222.0,0.00026679]
[1725566712074,0.004,56223.0,56222.0,0.17815879]
[1725566712272,0.00943293,56225.0,56222.0,1.49466679]
[1725566712475,0.08893,56233.0,56227.0,0.28]
[1725566712773,0.08893,56233.0,56222.0,0.36106679]
[1725566712774,0.08893,56233.0,56232.0,0.28]
[1725566713177,0.088925,56236.0,56233.0,0.088927]
[1725566713477,0.3608,56239.0,56236.0,0.088923]
[1725566713478,0.449719,56239.0,56236.0,0.088923]
[1725566713974,0.088921,56238.0,56236.0,0.088923]
[1725566714176,0.3608,56239.0,56238.0,0.088921]
[1725566714370,0.52057226,56244.0,56235.0,0.28]
[1725566714570,0.51965226,56244.0,56243.0,0.28]
[1725566715172,0.088915,56242.0,56240.0,0.28]
[1725566715378,0.002,56241.0,56240.0,0.28]
[1725566715771,0.090916,56241.0,56240.0,0.28]
[1725566715967,0.090916,56241.0,56238.0,0.1077]
[1725566716184,0.088922,56237.0,56236.0,0.001]
[1725566716472,0.088924,56236.0,56235.0,0.002]
[1725566716672,0.088924,56236.0,56235.0,0.1113]
[1725566716877,0.090924,56236.0,56235.0,0.3903]
[1725566717274,0.090924,56236.0,56235.0,0.001]
[1725566717275,0.179848,56236.0,56235.0,0.001]
[1725566717479,2.043052,56236.0,56235.0,0.002]
[1725566717674,2.05346039,56236.0,56235.0,0.001]
[1725566718578,2.05746039,56236.0,56235.0,0.002]
[1725566718784,0.266775,56235.0,56234.0,0.00026679]
[1725566719095,0.802255,56235.0,56234.0,7.9e-07]
[1725566719286,1.402255,56235.0,56234.0,7.9e-07]
[1725566720576,0.266829,56224.0,56223.0,0.0042]
[1725566720779,0.08896,56213.0,56212.0,0.28]
[1725566720983,0.09096,56213.0,56212.0,0.28]
[1725566721178,0.08896,56213.0,56212.0,0.29050241]
[1725566722277,0.08896,56213.0,56208.0,0.28]
[1725566722477,0.13253111,56212.0,56208.0,0.28]
[1725566722784,0.22349311,56212.0,56211.0,0.12503173]
[1725566722982,0.22349311,56212.0,56208.0,0.28]
[1725566722983,0.266904,56208.0,56207.0,7.9e-07]
[1725566723182,0.909704,56208.0,56207.0,7.9e-07]
[1725566723380,1.954456,56208.0,56207.0,7.9e-07]
[1725566724679,2.043424,56208.0,56207.0,7.9e-07]
[1725566724881,2.043424,56208.0,56195.0,0.0042]
[1725566724882,0.266961,56196.0,56195.0,0.0042]
[1725566725088,0.6428,56196.0,56180.0,0.1174]
[1725566725277,0.54079,56191.0,56183.0,0.28]
[1725566725476,0.53879,56191.0,56183.0,0.28]
[1725566725779,0.53879,56191.0,56180.0,0.202211]
[1725566725979,0.53879,56191.0,56185.0,0.00026679]
[1725566726985,0.53879,56191.0,56190.0,0.06528812]
[1725566727675,0.53879,56191.0,56190.0,0.012]
[1725566729192,0.449795,56191.0,56190.0,0.012]
[1725566729380,0.3618,56191.0,56190.0,0.109997]
[1725566730292,0.001,56191.0,56190.0,0.109997]
[1725566730479,0.36306679,56196.0,56195.0,0.088989]
[1725566730681,0.00226679,56196.0,56195.0,0.088989]
[1725566731791,0.09125379,56196.0,56195.0,0.088989]
[1725566732183,0.09125379,56196.0,56195.0,0.091989]
[1725566732388,0.09125379,56196.0,56195.0,0.097989]
[1725566732997,0.00226679,56196.0,56195.0,0.097989]
[1725566734189,0.09125379,56196.0,56195.0,0.009]
[1725566735393,0.00226679,56196.0,56195.0,0.097989]
[1725566736599,0.00226679,56196.0,56195.0,0.447989]
[1725566736792,0.088975,56204.0,56201.0,0.088979]
[1725566736984,0.088975,56204.0,56195.0,0.4711]
[1725566737295,0.088975,56204.0,56196.0,1.5]
[1725566737593,0.088975,56204.0,56202.0,0.088977]
[1725566738098,0.088975,56204.0,56203.0,0.088976]
[1725566738396,0.089975,56204.0,56203.0,0.088976]
[1725566738599,0.001,56204.0,56203.0,0.088976]
[1725566738784,0.004,56204.0,56203.0,0.088976]
[1725566739089,0.005,56204.0,56203.0,0.088976]
[1725566739501,0.003,56204.0,56203.0,0.088976]
[1725566739687,0.006,56204.0,56203.0,0.088976]
[1725566740393,0.002,56204.0,56203.0,0.088976]
[1725566740589,0.006,56204.0,56203.0,0.088976]
[1725566740784,0.006,56204.0,56203.0,0.09954244]
[1725566740989,0.104197,56204.0,56203.0,0.09954244]
[1725566741197,0.26275934,56204.0,56203.0,0.09954244]
[1725566741701,0.102197,56204.0,56203.0,0.09954244]
[1725566741898,0.16561819,56204.0,56203.0,0.09954244]
[1725566742096,0.26381519,56204.0,56203.0,0.09954244]
[1725566742297,0.35278919,56204.0,56203.0,0.01056644]
[1725566742496,0.088977,56203.0,56201.0,0.088979]
[1725566742699,0.177968,56198.0,56197.0,0.00026679]
[1725566742892,0.63897144,56198.0,56197.0,0.00026679]
[1725566743200,0.72795544,56198.0,56197.0,0.00026679]
[1725566744489,0.089003,56186.0,56185.0,0.0042]
[1725566744696,0.089003,56186.0,56170.0,1e-06]
[1725566744697,0.089006,56185.0,56170.0,1e-06]
[1725566745004,0.002,56171.0,56170.0,1e-06]
[1725566745798,0.14376636,56171.0,56170.0,1e-06]
[1725566746095,0.04557664,56171.0,56170.0,1e-06]
[1725566746299,0.04557664,56171.0,56170.0,0.001001]
[1725566746300,0.14777396,56171.0,56170.0,0.001001]
[1725566746491,0.04957664,56171.0,56170.0,0.001001]
[1725566746691,0.03557664,56171.0,56170.0,0.001001]
[1725566746895,0.142041,56176.0,56170.0,0.001001]
[1725566747103,0.142041,56176.0,56170.0,1e-06]
[1725566747303,0.004,56171.0,56170.0,1e-06]
[1725566747498,0.004,56171.0,56170.0,0.0103255]
[1725566747805,0.004,56171.0,56170.0,1.1444055]
[1725566748299,0.009,56171.0,56170.0,1.1454055]
[1725566748503,0.009,56171.0,56170.0,2.6454055]
[1725566748707,0.005,56171.0,56170.0,2.6454055]
[1725566749096,0.00126704,56176.0,56170.0,2.7334335]
[1725566749300,0.00126704,56176.0,56173.0,0.05315295]
[1725566749504,0.00026704,56176.0,56173.0,0.05315295]
[1725566750508,0.00026704,56176.0,56173.0,0.05415295]
[1725566752609,0.00926704,56176.0,56173.0,0.14417695]
[1725566753305,0.00926704,56176.0,56175.0,0.35]
[1725566753513,0.00926704,56176.0,56175.0,0.439019]
[1725566753514,0.001,56176.0,56175.0,0.439019]
[1725566753707,0.006,56176.0,56175.0,1.64409435]
[1725566753899,0.006,56176.0,56175.0,3.14409435]
[1725566754209,0.01,56176.0,56175.0,2.54409435]
[1725566754409,0.01,56176.0,56175.0,3.14409435]
[1725566754707,0.01,56176.0,56175.0,3.073059]
[1725566754908,0.01,56176.0,56175.0,3.14387289]
[1725566755605,0.001,56176.0,56175.0,3.14387289]
[1725566755801,0.008,56176.0,56175.0,3.12717466]
[1725566756104,0.007,56176.0,56175.0,3.12717466]
[1725566756309,0.00026655,56181.0,56178.0,0.089015]
[1725566757708,0.00126655,56181.0,56178.0,0.089015]
[1725566757902,0.00126655,56181.0,56179.0,0.089014]
[1725566758203,0.089019,56176.0,56175.0,0.00292]
[1725566758508,0.089027,56171.0,56165.0,0.00026704]
[1725566758723,0.460054,56171.0,56165.0,0.00026704]
[1725566759009,0.909881,56171.0,56170.0,1e-06]
[1725566759211,2.043961,56171.0,56170.0,1e-06]
[1725566759612,2.139161,56171.0,56170.0,1e-06]
[1725566759807,0.17807,56166.0,56165.0,0.00026704]
[1725566760003,0.089052,56155.0,56151.0,0.14217366]
[1725566760205,0.002,56152.0,56151.0,0.089058]
[1725566760505,0.089057,56152.0,56151.0,0.01026147]
[1725566760808,0.089057,56152.0,56141.0,0.28]
[1725566760809,0.089071,56143.0,56142.0,0.05311566]
[1725566761015,0.091071,56143.0,56142.0,0.01033082]
[1725566761197,0.091071,56143.0,56137.0,0.36106704]
[1725566761198,0.091071,56143.0,56137.0,0.4141827]
[1725566761404,0.002,56138.0,56137.0,0.36106704]
[1725566761900,0.002,56138.0,56137.0,0.37129533]
[1725566762106,0.002,56138.0,56137.0,0.01049533]
[1725566762505,0.002,56138.0,56137.0,0.00026704]
[1725566762506,0.091079,56138.0,56137.0,0.00026704]
[1725566763016,0.437879,56138.0,56137.0,0.00026704]
[1725566763207,0.437879,56138.0,56137.0,0.01426704]
[1725566763807,0.437879,56138.0,56137.0,0.02826704]
[1725566764212,0.3608,56138.0,56137.0,0.02826704]
[1725566764713,0.3618,56138.0,56137.0,0.02326704]
[1725566764903,0.3618,56138.0,56137.0,0.11234804]
[1725566765105,0.001,56138.0,56137.0,0.11234804]
[1725566766806,0.001,56138.0,56137.0,1.24674804]
[1725566767009,0.00026704,56148.0,56147.0,0.089065]
[1725566767406,0.00026704,56148.0,56142.0,0.3608]
[1725566767715,0.00026704,56148.0,56143.0,1.5]
[1725566767907,0.00026704,56148.0,56143.0,1.58907]
[1725566768102,0.00026704,56148.0,56144.0,0.08907]
[1725566768311,0.00126704,56148.0,56147.0,0.009]
[1725566768615,0.00126704,56148.0,56147.0,0.098065]
[1725566769008,0.00126704,56148.0,56147.0,0.009]
[1725566769208,0.00126704,56148.0,56147.0,1.509]
[1725566769410,0.00226704,56148.0,56147.0,1.503]
[1725566770619,0.09133004,56148.0,56147.0,1.503]
[1725566771117,0.09133004,56148.0,56147.0,1.513]
[1725566771626,0.00226704,56148.0,56147.0,1.513]
[1725566771803,0.00226704,56148.0,56147.0,1.602065]
[1725566773420,0.09133004,56148.0,56147.0,1.513]
[1725566774806,0.00226704,56148.0,56147.0,1.513]
[1725566775009,0.00226704,56148.0,56147.0,1.602065]
[1725566775720,0.00226704,56148.0,56147.0,2.19411066]
[1725566775912,0.0041,56161.0,56160.0,0.089044]
[1725566776118,0.3697,56170.0,56160.0,0.089044]
[1725566776119,0.3608,56170.0,56160.0,0.35]
[1725566776418,0.449821,56175.0,56165.0,0.05300802]
[1725566776617,0.089022,56174.0,56165.0,0.05300802]
[1725566776821,0.089022,56174.0,56169.0,0.08903]
[1725566777019,0.089022,56174.0,56165.0,0.14204302]
[1725566777020,0.089027,56172.0,56165.0,0.14204302]
[1725566777214,0.002,56166.0,56165.0,0.05300802]
[1725566777410,0.002,56166.0,56165.0,0.14204402]
[1725566778424,0.013,56166.0,56165.0,0.15340305]
[1725566778717,0.013,56166.0,56165.0,0.45039503]
[1725566778922,0.013,56166.0,56165.0,0.45139503]
[1725566779527,0.013,56166.0,56165.0,0.45039503]
[1725566779719,0.025,56166.0,56165.0,0.45139503]
[1725566779912,0.025,56166.0,56165.0,0.01235903]
[1725566780119,0.114035,56166.0,56165.0,0.002]
[1725566780425,0.20307,56166.0,56165.0,0.002]
[1725566780723,0.73719,56166.0,56165.0,0.002]
[1725566780927,1.187025,56166.0,56165.0,0.002]
[1725566781123,0.178072,56165.0,56164.0,0.00026704]
[1725566781331,0.714232,56165.0,56164.0,0.00026704]
[1725566781525,1.314232,56165.0,56164.0,0.00026704]
[1725566782423,0.192072,56165.0,56164.0,0.00226704]
[1725566782616,0.202072,56165.0,56164.0,0.00226704]
[1725566782822,0.113036,56165.0,56164.0,0.00226704]
[1725566783131,0.113036,56165.0,56164.0,0.09130504]
[1725566784724,0.113036,56165.0,56164.0,0.00226704]
[1725566784930,0.113036,56165.0,56164.0,0.01287043]
[1725566785119,0.113036,56165.0,56164.0,0.00226704]
[1725566788926,0.202072,56165.0,56164.0,0.00226704]
[1725566789125,0.202072,56165.0,56151.0,0.3262]
[1725566789126,0.08905,56157.0,56151.0,0.3262]
[1725566789323,0.091057,56152.0,56151.0,0.089058]
[1725566790125,0.002,56152.0,56151.0,0.089058]
[1725566790631,0.003,56152.0,56151.0,0.095058]
[1725566791324,0.092057,56152.0,56151.0,0.006]
[1725566791528,0.181114,56152.0,56151.0,0.006]
[1725566791934,0.181114,56152.0,56151.0,0.008]
[1725566792327,0.541914,56152.0,56151.0,0.008]
[1725566792835,0.541914,56152.0,56146.0,0.00026704]
[1725566792836,0.089065,56147.0,56146.0,0.00026704]
[1725566793137,0.801865,56147.0,56146.0,0.00026704]
[1725566793636,0.89093,56147.0,56146.0,0.00026704]
[1725566794632,2.02525,56147.0,56146.0,0.00026704]
[1725566794840,2.02625,56147.0,56146.0,0.00826704]
[1725566795826,2.02725,56147.0,56146.0,0.01626704]
[1725566796538,2.116315,56147.0,56146.0,0.01626704]
[1725566796735,0.089084,56135.0,56134.0,0.0041]
[1725566797036,0.089089,56132.0,56131.0,0.089089]
[1725566797233,0.091089,56132.0,56131.0,0.089089]
[1725566798834,0.004,56135.0,56134.0,0.001]
[1725566799034,0.004,56135.0,56134.0,0.090085]
[1725566799333,0.004,56135.0,56134.0,1.224525]
[1725566799534,0.00026704,56137.0,56136.0,0.178164]
[1725566799725,0.00026704,56137.0,56136.0,0.528164]
[1725566799929,0.0041,56149.0,56147.0,0.089064]
[1725566800128,0.089059,56151.0,56147.0,0.089064]
[1725566800536,0.7108,56149.0,56134.0,0.3241]
[1725566800731,0.002,56135.0,56134.0,0.10174918]
[1725566800935,0.08907,56144.0,56134.0,0.01266418]
[1725566801236,0.08907,56144.0,56142.0,0.05316252]
[1725566801435,0.449863,56149.0,56145.0,0.089067]
[1725566802041,0.089063,56148.0,56145.0,0.089067]
[1725566802536,0.35,56148.0,56144.0,0.1104]
[1725566802732,0.002,56145.0,56144.0,0.1094]
[1725566803338,0.002,56145.0,56144.0,0.19847]
[1725566804232,0.003,56145.0,56144.0,0.19847]
[1725566804539,0.003,56145.0,56144.0,0.20902969]
[1725566807231,0.003,56145.0,56144.0,0.26219221]
[1725566807428,0.001,56145.0,56144.0,0.26219221]
[1725566807624,0.001,56145.0,56144.0,0.20902969]
[1725566807840,0.090068,56145.0,56144.0,0.20902969]
[1725566808543,0.001,56145.0,56144.0,0.20902969]
[1725566808731,0.001,56145.0,56144.0,0.57809969]
[1725566808930,0.001,56145.0,56144.0,1.62334969]
[1725566809155,0.001,56145.0,56144.0,1.02334969]
[1725566809336,0.005,56145.0,56144.0,2.52334969]
[1725566809835,0.013,56145.0,56144.0,2.52334969]
[1725566810227,0.013,56145.0,56144.0,1.70902969]
[1725566810427,0.013,56145.0,56144.0,0.20902969]
[1725566810632,0.089065,56147.0,56144.0,0.20902969]
[1725566810835,0.091068,56145.0,56144.0,0.1094]
[1725566811044,0.091068,56145.0,56141.0,0.00026704]
[1725566811045,0.178146,56142.0,56141.0,0.00026704]
[1725566811338,0.820946,56142.0,56141.0,0.00026704]
[1725566811943,0.890946,56142.0,56141.0,0.00026704]
[1725566812535,0.980019,56142.0,56141.0,0.00026704]
[1725566812733,0.089093,56130.0,56129.0,0.089093]
[1725566813029,0.091093,56130.0,56129.0,0.089093]
[1725566813942,0.093093,56130.0,56129.0,0.089093]
[1725566814838,0.100093,56130.0,56129.0,0.089093]
[1725566815041,0.089093,56129.0,56128.0,0.01036087]
[1725566815236,0.091093,56129.0,56126.0,0.4725]
[1725566815541,0.002,56127.0,56126.0,0.3608]
[1725566815747,0.002,56127.0,56124.0,0.00026704]
[1725566815748,0.1782,56125.0,56124.0,0.00026704]
[1725566816041,0.1802,56125.0,56124.0,0.00026704]
[1725566817032,0.1892,56125.0,56124.0,0.00026704]
[1725566817344,0.2002,56125.0,56124.0,0.00026704]
[1725566817940,1.33772,56125.0,56124.0,0.00026704]
[1725566818142,0.089114,56116.0,56112.0,0.4731]
[1725566818333,0.089119,56113.0,56112.0,0.41383884]
[1725566818644,0.089119,56113.0,56108.0,0.10903884]
[1725566818645,0.089125,56109.0,56108.0,0.10903884]
[1725566818840,0.089125,56109.0,56108.0,0.056]
[1725566818841,0.091125,56109.0,56108.0,0.056]
[1725566819741,0.091125,56109.0,56108.0,0.06663815]
[1725566820136,0.451925,56109.0,56108.0,0.06663815]
[1725566820646,0.451925,56109.0,56108.0,0.06863815]
[1725566820836,0.54105,56109.0,56108.0,0.058]
[1725566821446,0.54105,56109.0,56103.0,0.00026728]
[1725566821447,0.178266,56104.0,56103.0,0.00026728]
[1725566821645,0.089152,56092.0,56091.0,0.14219184]
[1725566821943,0.449952,56092.0,56091.0,0.09966028]
[1725566822142,0.539104,56092.0,56091.0,0.01050728]
[1725566822445,0.089158,56088.0,56087.0,0.1114]
[1725566822643,0.091158,56088.0,56087.0,0.1114]
[1725566823043,0.08916,56087.0,56086.0,0.00026728]
[1725566823249,0.45396,56087.0,56086.0,0.00026728]
[1725566823440,0.54312,56087.0,56086.0,0.00026728]
[1725566823633,0.54112,56087.0,56086.0,0.00026728]
[1725566823950,0.54112,56087.0,56076.0,0.1013]
[1725566823951,0.089176,56077.0,56076.0,0.1013]
[1725566824135,0.3608,56077.0,56070.0,0.1026]
[1725566824335,0.3608,56077.0,56070.0,0.11318282]
[1725566824336,0.004,56071.0,56070.0,0.11318282]
[1725566824538,0.3648,56077.0,56070.0,0.20236982]
[1725566824840,0.3648,56077.0,56070.0,0.11318282]
[1725566825148,0.004,56077.0,56076.0,0.799978]
[1725566825343,0.00026728,56079.0,56078.0,0.089174]
[1725566825546,0.00026728,56079.0,56078.0,0.624134]
[1725566825748,0.00026728,56079.0,56078.0,1.27717284]
[1725566826049,0.00026728,56079.0,56078.0,1.224134]
[1725566826436,0.00126728,56079.0,56078.0,1.224134]
[1725566826738,0.00226728,56079.0,56078.0,1.224134]
[1725566827646,0.00226728,56079.0,56078.0,1.27717284]
[1725566827835,0.00226728,56079.0,56078.0,1.28757238]
[1725566828240,0.00226728,56079.0,56078.0,1.23453354]
[1725566828450,0.0041,56091.0,56078.0,1.19839838]
[1725566828651,0.3608,56093.0,56082.0,0.35]
[1725566828843,0.3608,56093.0,56083.0,1.5]
[1725566829038,0.3608,56093.0,56087.0,0.089159]
[1725566829243,0.3608,56093.0,56083.0,0.001]
[1725566829446,0.3608,56093.0,56082.0,0.4538]
[1725566829447,0.3608,56093.0,56090.0,0.089155]
[1725566829643,0.002,56091.0,56090.0,0.089155]
[1725566829843,0.002,56091.0,56086.0,0.35]
[1725566830051,0.004,56087.0,56086.0,0.439162]
[1725566830349,0.004,56087.0,56086.0,1.939162]
[1725566831149,0.004,56087.0,56086.0,1.589162]
[1725566831358,0.004,56087.0,56086.0,1.59942809]
[1725566831857,0.004,56087.0,56086.0,1.94942809]
[1725566832156,0.005,56087.0,56086.0,0.44942809]
[1725566832655,0.006,56087.0,56086.0,1.94942809]
[1725566833839,0.3668,56087.0,56086.0,0.01026609]
[1725566834040,0.178332,56083.0,56082.0,0.00026728]
[1725566834245,0.819132,56083.0,56082.0,0.00026728]
[1725566834445,0.733966,56083.0,56082.0,0.00026728]
[1725566834858,0.823132,56083.0,56082.0,0.00026728]
[1725566835259,0.824132,56083.0,56082.0,0.00026728]
[1725566835553,0.825132,56083.0,56082.0,0.00026728]
[1725566836054,0.545132,56083.0,56082.0,0.00026728]
[1725566838157,0.455966,56083.0,56082.0,0.00026728]
[1725566839363,0.455966,56083.0,56082.0,1.50026728]
[1725566839561,0.455966,56083.0,56082.0,1.58943528]
[1725566839862,0.01025788,56088.0,56082.0,1.58943528]
[1725566839863,0.3649,56096.0,56093.0,0.089151]
[1725566840061,0.449946,56096.0,56093.0,0.439151]
[1725566840271,0.3608,56096.0,56093.0,0.439151]
[1725566841358,0.3608,56096.0,56091.0,0.07042069]
[1725566841559,0.3608,56096.0,56089.0,0.35]
[1725566841560,0.089151,56093.0,56092.0,0.05294045]
[1725566841960,0.00326728,56094.0,56091.0,0.05294045]
[1725566841961,0.089152,56092.0,56091.0,0.05294045]
[1725566842162,0.089157,56089.0,56088.0,0.07042069]
[1725566842365,0.449957,56089.0,56088.0,0.07042069]
[1725566842568,0.453957,56089.0,56088.0,0.07042069]
[1725566842861,0.089157,56089.0,56087.0,0.01071576]
[1725566843061,0.004,56092.0,56088.0,0.35]
[1725566843361,0.004,56092.0,56088.0,0.52749567]
[1725566843760,0.004,56092.0,56088.0,0.439157]
[1725566843962,0.004,56092.0,56089.0,0.089157]
[1725566844265,0.004,56092.0,56089.0,0.17749567]
[1725566844465,0.089154,56091.0,56088.0,0.43833867]
[1725566844767,0.005,56089.0,56088.0,0.43833867]
[1725566844968,0.005,56089.0,56088.0,0.57421895]
[1725566845171,0.004,56089.0,56088.0,0.13588028]
[1725566845368,0.093157,56089.0,56088.0,0.13588028]
[1725566845760,0.004,56089.0,56088.0,0.13588028]
[1725566846060,0.3608,56091.0,56088.0,0.13588028]
[1725566846258,0.089162,56086.0,56084.0,0.01033961]
[1725566846459,0.089162,56086.0,56083.0,0.305566]
[1725566846756,0.089157,56090.0,56083.0,0.5664]
[1725566846957,0.089157,56090.0,56086.0,0.089162]
[1725566847157,0.3618,56091.0,56083.0,0.5664]
[1725566847368,0.178328,56085.0,56084.0,0.016]
[1725566848466,0.802412,56085.0,56084.0,0.016]
[1725566848768,0.53492,56084.0,56071.0,0.089184]
[1725566848959,0.3648,56072.0,56068.0,0.30089]
[1725566849157,0.093189,56069.0,56068.0,0.30089]
[1725566849359,0.004,56069.0,56065.0,0.089195]
[1725566849666,0.3648,56072.0,56065.0,0.089195]
[1725566849667,0.3608,56067.0,56065.0,0.089195]
[1725566850469,0.089196,56065.0,56063.0,0.089198]
[1725566850665,0.004,56064.0,56063.0,0.089198]
[1725566851263,0.0892,56062.0,56061.0,0.01076921]
[1725566851463,0.454,56062.0,56061.0,0.01076921]
[1725566853262,0.454,56062.0,56061.0,0.14672722]
[1725566853770,0.004,56062.0,56061.0,0.23592822]
[1725566853971,0.001,56064.0,56063.0,0.089198]
[1725566854160,0.36106752,56073.0,56063.0,2.7757347]
[1725566854465,0.36106752,56073.0,56072.0,0.19570923]
[1725566854466,0.00026752,56073.0,56072.0,0.19570923]
[1725566854669,0.00026752,56073.0,56072.0,1.74030525]
[1725566854964,0.00026752,56073.0,56072.0,0.60526525]
[1725566855359,0.08917,56081.0,56075.0,0.089179]
[1725566855566,0.08917,56081.0,56076.0,0.22513501]
[1725566855867,0.3608,56082.0,56077.0,0.13595801]
[1725566856057,0.08917,56081.0,56080.0,0.08875553]
[1725566856257,0.089171,56080.0,56079.0,0.08875553]
[1725566856465,0.089171,56080.0,56079.0,0.22467105]
[1725566856665,0.091171,56080.0,56079.0,0.22467105]
[1725566857067,0.002,56080.0,56079.0,0.13591584]
[1725566857269,0.002,56080.0,56079.0,0.22508884]
[1725566857571,0.009,56080.0,56079.0,0.22508884]
[1725566858761,0.009,56080.0,56079.0,0.13591584]
[1725566858967,0.098171,56080.0,56079.0,0.13591584]
[1725566859269,0.108171,56080.0,56079.0,0.13591584]
[1725566859472,0.108171,56080.0,56079.0,0.22468071]
[1725566859770,0.108171,56080.0,56079.0,0.13591584]
[1725566859957,0.197342,56080.0,56079.0,0.08876428]
[1725566860157,0.089173,56079.0,56078.0,0.08876428]
[1725566860358,0.091173,56079.0,56078.0,0.22468271]
[1725566860557,0.180346,56079.0,56078.0,0.22468271]
[1725566861268,0.180346,56079.0,56074.0,0.00026752]
[1725566861269,0.089179,56075.0,56074.0,0.00026752]
[1725566861572,0.891158,56075.0,56074.0,0.00026752]
[1725566861958,2.026158,56075.0,56074.0,0.00026752]
[1725566862572,2.030158,56075.0,56074.0,0.00026752]
[1725566863174,0.895158,56075.0,56074.0,0.00026752]
[1725566863568,0.984337,56075.0,56074.0,0.00026752]
[1725566863770,1.092537,56075.0,56074.0,0.00026752]
[1725566864273,2.227537,56075.0,56074.0,0.00026752]
[1725566865476,1.627537,56075.0,56074.0,0.00026752]
[1725566866972,0.457979,56075.0,56074.0,0.00026752]
[1725566867277,0.3688,56075.0,56074.0,0.43944852]
[1725566867465,0.008,56075.0,56074.0,0.52862952]
[1725566867875,0.008,56075.0,56074.0,2.02862952]
[1725566868177,0.008,56075.0,56074.0,3.17428839]
[1725566868361,0.3608,56086.0,56074.0,3.32751131]
[1725566868562,0.449962,56086.0,56084.0,0.089165]
[1725566869277,0.36176001,56094.0,56084.0,0.51014159]
[1725566869465,0.449949,56094.0,56084.0,1.574085]
[1725566869668,0.3608,56094.0,56091.0,0.089152]
[1725566869869,0.3608,56094.0,56092.0,0.1095]
[1725566870476,0.3608,56094.0,56092.0,0.16272517]
[1725566870979,0.3608,56094.0,56093.0,0.05322517]
[1725566871279,0.3668,56094.0,56092.0,0.17307728]
[1725566871469,0.002,56093.0,56092.0,0.17307728]
[1725566871881,0.002,56093.0,56092.0,0.17407728]
[1725566872081,0.002,56093.0,56092.0,0.12085211]
[1725566873571,0.002,56093.0,56092.0,0.11985211]
[1725566873774,0.015,56093.0,56092.0,0.11985211]
[1725566874584,0.026,56093.0,56092.0,0.11985211]
[1725566875075,0.115151,56093.0,56092.0,0.11985211]
[1725566875584,0.089156,56090.0,56088.0,0.11925106]
[1725566875780,0.089157,56089.0,56088.0,0.11925106]
[1725566875978,0.091157,56089.0,56088.0,0.11925106]
[1725566876692,0.089158,56088.0,56087.0,0.00026752]
[1725566877074,0.091158,56088.0,56087.0,0.01068226]
[1725566877373,0.269474,56088.0,56087.0,0.00026752]
[1725566878178,0.279474,56088.0,56087.0,0.00026752]
[1725566879677,0.269474,56088.0,56087.0,0.00026752]
[1725566879994,0.297474,56088.0,56087.0,0.00026752]
[1725566880287,0.283474,56088.0,56087.0,0.00026752]